Cogmind - Beta 11.1 *** ADVENTURER MODE // 2022.11.07 @ 18:15:53 Player: WimP_Lo Result: Smashed by cave-in Performance ------------- Evolutions (0) 0 Regions Visited (4) 800 Robots Destroyed (31) 155 Value Destroyed (905) 905 Prototype IDs (3) 60 Alien Tech Used (0) 0 Bonus (0) 0 TOTAL SCORE: 1920 Bonus ------- None Cogmind --------- Core Integrity 0/250 Matter 274/300 Energy 100/100 System Corruption 6% Temperature Cool (2) Movement Hovering (60) Location -9/Mines Parts ------- > --- POWER (1) -------- (None) > --- PROPULSION (2) --- Gravmag System > --- UTILITY (2) ------ Weight Redist. System Terrain Scanner > --- WEAPON (2) ------- Particle Cannon Grenade Launcher > --- INVENTORY (5) ---- Wheel Compact Wheel Gauss Rifle Datajack Peak State ------------ > --- POWER ------------ Light Ion Engine > --- PROPULSION ------- Hover Unit Gravmag System > --- UTILITY ---------- Weight Redist. System Makeshift Terrain Scan Processor > --- WEAPON ----------- Makeshift Shrapnel Gun Makeshift Sword > --- INVENTORY -------- Compact Wheel Gauss Rifle Grenade Launcher Remote Datajack [Rating: 21] Favorites ----------- Power Light Ion Engine Engine Light Ion Engine Propulsion Compact Wheel Wheel Compact Wheel Hover Unit Hover Unit Flight Unit Flight Unit Utility Weight Redist. System Device Weight Redist. System Storage Small Storage Unit Processor Makeshift Terrain Scan Processor Weapon Particle Cannon Energy Gun Small Laser Energy Cannon Particle Cannon Ballistic Gun Assault Rifle Ballistic Cannon Light Cannon Launcher Grenade Launcher Slashing Weapon Makeshift Sword Special Melee Weapon Datajack Build | -11 -10 -10 -10 -9 ------- Run | Scr Mat Min Exi Min Slots Evolved . | . . . . . Power . | . . . . . Propulsion . | . . . . . Utility . | . . . . . Weapon . | . . . . . Parts Attached 52 | 6 26 5 13 2 Power 6 | 1 3 1 1 . Engine 6 | 1 3 1 1 . Core . | . . . . . Reactor . | . . . . . Propulsion 9 | 2 5 1 1 . Treads . | . . . . . Leg . | . . . . . Wheel 5 | 2 3 . . . Hover 2 | . 1 . 1 . Flight 2 | . 1 1 . . Utility 10 | 1 4 2 2 1 Device 8 | . 4 2 1 1 Storage 1 | 1 . . . . Processor 1 | . . . 1 . Hackware . | . . . . . Protection . | . . . . . Artifact . | . . . . . Weapon 27 | 2 14 1 9 1 Energy Gun 8 | 1 7 . . . Energy Cannon 2 | . 1 . 1 . Ballistic Gun 4 | 1 . . 3 . Ballistic Cannon 1 | . 1 . . . Launcher 6 | . 3 1 1 1 Special Weapon . | . . . . . Impact Weapon . | . . . . . Slashing Weapon 1 | . . . 1 . Piercing Weapon . | . . . . . Special Melee Weapon 5 | . 2 . 3 . Unidentified Prototypes . | . . . . . Parts Lost 2 | . . . . 2 Power 1 | . . . . 1 Propulsion 1 | . . . . 1 Utility . | . . . . . Weapon . | . . . . . Highest Loss Streak 2 | . . . . 2 To Critical Strikes . | . . . . . Average Slot Usage (%) 86 | . 86 92 83 85 Engine 13 | . 14 13 14 14 Wheel 13 | . 22 7 . . Hover 8 | . . 14 19 28 Flight 2 | . 5 . . . Device 16 | . 8 28 22 14 Storage 4 | . 8 . . . Energy Gun 5 | . 11 . . . Energy Cannon 7 | . 3 14 12 14 Ballistic Gun 2 | . 2 . 3 . Ballistic Cannon 3 | . 6 . . . Launcher 5 | . 2 12 5 14 Naked Turns . | . . . . . Heaviest Build 16 | 11 16 15 16 13 Greatest Support 26 | 26 26 12 21 21 Greatest Overweight (x) 3 | 1 3 1 1 . Average Overweight (x) . | . . . . . Largest Inventory Capacity 8 | 8 8 5 5 5 Average Capacity 6 | 7 6 5 5 5 Most Carried 6 | 6 6 5 5 4 Average Carried 4 | 2 4 3 4 3 Final Capacity 8 | 8 5 5 5 5 Final Carried 4 | 2 3 4 3 4 Class Distribution -------------------- 100% | Mutant Dominant Class ---------------- Mutant | -10/Materials Mutant | -10/Mines Mutant | -10/Exiles Mutant | -9/Mines Resources | -11 -10 -10 -10 -9 ----------- Run | Scr Mat Min Exi Min Matter Collected 991 | 260 415 147 80 89 Remotely . | . . . . . Salvage Created 1052 | . 470 257 171 154 Parts 53 | . 30 6 9 8 Haulers Intercepted . | . . . . . Recyclers Shooed 1 | . 1 . . . Parts Field Recycled . | . . . . . Retrieved Matter . | . . . . . Parts Self-Destructed . | . . . . . Prevented . | . . . . . Kills | -11 -10 -10 -10 -9 ------- Run | Scr Mat Min Exi Min Combat Hostiles Destroyed 24 | . 15 6 . 3 Guns 6 | . 6 . . . Cannons 11 | . 8 2 . 1 AOE 7 | . 1 4 . 2 Classes Destroyed 6 | . 3 1 . 2 Worker 1 | . . . . 1 Builder 1 | . . . . 1 Recycler 2 | . . 1 . 1 Watcher 3 | . 3 . . . Swarmer 3 | . 3 . . . Grunt 21 | . 12 6 . 3 Best Kill Streak 6 | . 4 3 . 6 Combat Bots Only 3 | . 3 2 . 3 Max Kills in Single Turn 2 | . 1 2 . 2 Gunslinging . | . . . . . Exploded 1 | . 1 1 . 1 Melee . | . . . . . Uniques/NPCs Destroyed . | . . . . . Combat | -11 -10 -10 -10 -9 -------- Run | Scr Mat Min Exi Min Damage Taken 841 | . 310 132 . 399 Core 255 | . 67 56 . 132 Absorbed by Shields . | . . . . . Core Remaining (%) 100 | 100 . . . . Volleys Fired 58 | . 37 13 3 5 Largest 2 | . 2 2 1 2 Hottest 113 | . 113 98 68 98 Shots Fired 100 | . 65 22 3 10 Gun 28 | . 28 . . . Cannon 49 | . 27 14 3 5 Launcher 23 | . 10 8 . 5 Special . | . . . . . Kinetic 17 | . 17 . . . Thermal 46 | . 24 14 3 5 Explosive 23 | . 10 8 . 5 Electromagnetic 14 | . 14 . . . Robot Hit Streak 34 | . 34 8 5 10 Robot Miss Streak 4 | . 4 2 . 1 Penetration Max . | . . . . . Secondary Targets . | . . . . . Shots Hit Robots 72 | . 43 13 9 7 Core Hits 53 | . 32 10 3 8 Critical Kills . | . . . . . Critical Parts Destroyed . | . . . . . Critical Strikes 2 | . 2 . . . Blast 2 | . 2 . . . Melee Attacks 6 | . . . 6 . Impact . | . . . . . Slashing 1 | . . . 1 . Piercing . | . . . . . Sneak Attacks 3 | . . . 3 . Combat Hostiles 3 | . . . 3 . Follow-up Attacks . | . . . . . Damage Inflicted 2225 | . 1143 473 135 474 Guns 287 | . 287 . . . Cannons 636 | . 409 102 63 62 Explosions 1201 | . 418 371 . 412 Melee 72 | . . . 72 . Ramming 29 | . 29 . . . Kinetic 243 | . 243 . . . Thermal 448 | . 221 102 63 62 Explosive 1201 | . 418 371 . 412 Electromagnetic 232 | . 232 . . . Impact . | . . . . . Slashing 72 | . . . 72 . Piercing . | . . . . . Highest Corruption 1 | . 1 1 1 1 Average Corruption 1 | . 1 1 1 1 Corruption Purged . | . . . . . Corruption Blocked . | . . . . . Effects 11 | . 4 5 2 . Message Errors 3 | . . 2 1 . Matter Fused 3 | . 2 . 1 . Heat Flow Errors 1 | . 1 . . . Data Loss (minor) 1 | . . 1 . . Data Loss (major) 1 | . . 1 . . Misfires 2 | . 1 1 . . Overload Shots . | . . . . . Overflow Damage 48 | . 2 . 35 11 Projectiles 2 | . 2 . . . Explosions 11 | . . . . 11 Melee 35 | . . . 35 . Knockbacks 4 | . 4 . . . Impact . | . . . . . Kinetic 4 | . 4 . . . Secondary . | . . . . . Self-Inflicted Damage 117 | . 61 16 . 40 Shots 7 | . 3 1 . 3 Rammed 5 | . 5 . . . Targets Rammed 5 | . 5 . . . Kicked . | . . . . . Crushed . | . . . . . Highest Temperature 238 | . 204 60 30 238 Average Temperature 47 | . 38 23 19 126 Received Heat Transfer 291 | . 153 84 . 54 Siege Activations . | . . . . . Robots Corrupted . | . . . . . Combat Hostiles . | . . . . . Parts Fried 1 | . 1 . . . Impact Corruptions . | . . . . . Robots Melted . | . . . . . Combat Hostiles . | . . . . . Parts Melted 1 | . . . 1 . Heat Transferred 828 | . 421 185 111 111 Parts Sabotaged . | . . . . . Parts Stolen . | . . . . . Parts Stripped . | . . . . . Power Chain Reactions . | . . . . . Missiles Intercepted . | . . . . . Alert | -11 -10 -10 -10 -9 ------- Run | Scr Mat Min Exi Min Peak Influence 398 | . 269 398 . 157 Initial 88 | . . 88 . . Average 126 | . 83 240 . 120 Maximum Alert Level 1 | . 1 1 . . Low Security (%) 79 | 100 90 48 . 100 Level 1 20 | . 9 51 . . Level 2 . | . . . . . Level 3 . | . . . . . Level 4 . | . . . . . Level 5 . | . . . . . High Security . | . . . . . Max Security . | . . . . . Squads Dispatched 5 | . 4 1 . . Investigation 5 | . 4 1 . . Extermination . | . . . . . Reinforcement . | . . . . . Assault . | . . . . . Garrison . | . . . . . Intercept . | . . . . . Searches Triggered . | . . . . . Construction Impeded . | . . . . . Haulers Reinforced . | . . . . . Active Scanning Responses . | . . . . . Cargo Convoy Interrupts . | . . . . . Stealth | -11 -10 -10 -10 -9 --------- Run | Scr Mat Min Exi Min Distress Signals 1 | . 1 . . . Communications Jammed . | . . . . . Distress Signals . | . . . . . Times Spotted 30 | . 19 8 . 3 Peak Tracking Total 3 | . 3 2 . 3 Tactical Retreats 3 | . 1 2 . . Traps | -11 -10 -10 -10 -9 ------- Run | Scr Mat Min Exi Min Traps Triggered . | . . . . . Indirectly . | . . . . . Trap Hack Attempts . | . . . . . Triggered . | . . . . . Disarmed 6 | . 6 . . . Reprogrammed . | . . . . . Reused . | . . . . . Traps Extracted . | . . . . . Installed . | . . . . . Triggered . | . . . . . Machines | -11 -10 -10 -10 -9 ---------- Run | Scr Mat Min Exi Min Machines Disabled 3 | . 3 . . . Max in Single Turn 2 | . 2 . . . Machines Sabotaged . | . . . . . Garrisons Compromised . | . . . . . Overloaded Fab Kills . | . . . . . Hacking | -11 -10 -10 -10 -9 --------- Run | Scr Mat Min Exi Min Machines Accessed 10 | . 8 1 1 . Terminals 6 | . 6 . . . Fabricators . | . . . . . Repair Stations . | . . . . . Recycling Units 2 | . 2 . . . Scanalyzers . | . . . . . Garrison Access . | . . . . . Total Hacks 36 | . 32 1 3 . Successful 30 | . 26 1 3 . Failed 6 | . 6 . . . Catastrophic . | . . . . . Database Lockouts . | . . . . . Manual . | . . . . . Terminals 24 | . 24 . . . Fabricators . | . . . . . Repair Stations . | . . . . . Recycling Units 8 | . 8 . . . Scanalyzers . | . . . . . Garrison Access . | . . . . . Terminal Hacks 22 | . 18 1 3 . Record 6 | . 3 . 3 . Prototype ID Bank 2 | . 2 . . . Open Door 1 | . . 1 . . Emergency Access Points 1 | . 1 . . . Terminal Index 1 | . 1 . . . Alert Level 2 | . 2 . . . Unreport Threat 1 | . 1 . . . Locate Traps 3 | . 3 . . . Disarm Traps 1 | . 1 . . . Dispatch Records 1 | . 1 . . . Maintenance Status 1 | . 1 . . . Security Status 1 | . 1 . . . Recall Investigation 1 | . 1 . . . Fabricator Hacks . | . . . . . Repair Station Hacks . | . . . . . Recycling Unit Hacks 8 | . 8 . . . Recycle Component 1 | . 1 . . . Process 3 | . 3 . . . Report Inventory 3 | . 3 . . . Retrieve Matter 1 | . 1 . . . Scanalyzer . | . . . . . Garrison Access Hacks . | . . . . . Unauthorized Hacks . | . . . . . Terminals . | . . . . . Fabricators . | . . . . . Repair Stations . | . . . . . Recycling Units . | . . . . . Scanalyzers . | . . . . . Garrison Access . | . . . . . Data Cores Recovered . | . . . . . Used . | . . . . . Hacking Detections 7 | . 7 . . . Full Trace Events 5 | . 5 . . . Feedback Events . | . . . . . Feedback Blocked . | . . . . . Robot Schematics Acquired . | . . . . . Robots Built . | . . . . . Authchips . | . . . . . Time . | . . . . . Total Robot Build Rating . | . . . . . Part Schematics Acquired . | . . . . . Parts Built . | . . . . . Authchips . | . . . . . Time . | . . . . . Total Part Build Rating . | . . . . . Parts Repaired . | . . . . . Time . | . . . . . Parts Recycled 1 | . 1 . . . Recycled Matter 97 | . 97 . . . Retrieved Matter 28 | . 28 . . . Retrieved Components . | . . . . . Parts Scanalyzed . | . . . . . Part Schematics Acquired . | . . . . . Parts Damaged . | . . . . . Bothacking | -11 -10 -10 -10 -9 ------------ Run | Scr Mat Min Exi Min Used RIF Installer . | . . . . . Robots Hacked . | . . . . . Non-combat . | . . . . . Combat . | . . . . . Robot Hacks Applied . | . . . . . Relay Couplers Released . | . . . . . Fabnet Peak Effective % . | . . . . . Robots Rewired 2 | . . . 2 . Allies Hacked . | . . . . . Hacks Repelled . | . . . . . Allies | -11 -10 -10 -10 -9 -------- Run | Scr Mat Min Exi Min Total Allies 2 | . . . 2 . Largest Group 2 | . . . 2 . Highest-Rated Group 16 | . . . 16 . Highest-Rated Ally 8 | . . . 8 . Total Orders . | . . . . . Ally Attacks . | . . . . . Total Damage . | . . . . . Kills . | . . . . . Allies Corrupted . | . . . . . Allies Melted . | . . . . . Intel | -11 -10 -10 -10 -9 ------- Run | Scr Mat Min Exi Min Robot Analysis Total . | . . . . . Derelict Logs Recovered 2 | . . 2 . . Drone Launches . | . . . . . Drone Recoveries . | . . . . . Exploration | -11 -10 -10 -10 -9 ------------- Run | Scr Mat Min Exi Min Turns Passed 2287 | 54 1189 511 499 34 Spaces Moved 2406 | 52 1256 526 546 26 Core 19 | 16 3 . . . Treads . | . . . . . Legs . | . . . . . Wheels 746 | 36 710 . . . Hover 1124 | . 26 526 546 26 Flight 517 | . 517 . . . Fastest Speed 45 | 50 45 65 56 56 Average Speed 76 | 78 71 83 82 56 Slowest Speed 200 | 100 200 125 120 56 Overloaded Moves . | . . . . . Propulsion Burnouts . | . . . . . Robots Hopped 1 | . 1 . . . Cave-ins Triggered 1 | . . . . 1 Exploration Rate (%) 53 | 3 98 76 81 9 Regions Visited 4 Branch Regions 3 Pre-discovered Areas . | . . . . . Known Exits Taken . | . . . . . Unknown Exits Taken 4 | 1 1 1 1 . Scrap Searched . | . . . . . Spaces Dug 9 | . 9 . . . Terrain Destroyed 145 | . 57 59 . 29 Melee . | . . . . . Projectile 2 | . . 2 . . AOE 143 | . 57 57 . 29 Terrain Rammed . | . . . . . Walls Destroyed . | . . . . . Machines Disabled . | . . . . . Actions | -11 -10 -10 -10 -9 --------- Run | Scr Mat Min Exi Min Total 2748 | 64 1484 576 590 34 Wait 142 | . 120 22 . . Move 2399 | 51 1253 525 545 25 Hop 1 | . 1 . . . Pick Up 41 | 7 16 6 10 2 Fast Attach 6 | 1 4 . 1 . Attach 26 | 5 13 3 4 1 Detach 9 | . 8 . 1 . Swap 20 | . 9 2 8 1 Drop 35 | . 18 5 12 . Fire 58 | . 37 13 3 5 Melee 6 | . . . 6 . Ram 5 | . 5 . . . Kick . | . . . . . Crush . | . . . . . Escape Stasis . | . . . . . Rewire . | . . . . . Trap . | . . . . . Miscellaneous . | . . . . . Route ------- -11/Scrapyard -10/Materials (discovered 5 exits: [*Mat x3] / *Min x2) -10/Mines (discovered 3 exits: [*Mat x2] / *Exi) -10/Exiles (discovered 2 exits: [*Min x2]) -9/Mines (discovered 1 exit: [*Mat]) History --------- Turn | Location | Event 24 | -11/Scrapyard | Discovered new exit (range 15) 55 | -11/Scrapyard | Entered Materials 205 | -10/Materials | Discovered new exit (range 12) 303 | -10/Materials | Build established: Mutant 498 | -10/Materials | Discovered new exit (range 13) 595 | -10/Materials | Discovered new exit (range 8) 878 | -10/Materials | Discovered new exit (range 5) 910 | -10/Materials | Discovered new exit (range 6) 1244 | -10/Materials | Entered Mines 1341 | -10/Mines | Discovered new exit (range 12) 1346 | -10/Mines | Received a Rocket Launcher from a helpful Derelict 1404 | -10/Mines | Learned Materials terminal intel 1493 | -10/Mines | Met a Derelict shopkeep closing up shop 1496 | -10/Mines | Learned Materials machine intel 1648 | -10/Mines | Discovered new exit (range 12) 1750 | -10/Mines | Deemed a non-threat by the Exiles lab entrance 1750 | -10/Mines | Discovered new exit (range 5) 1755 | -10/Mines | Entered Exiles 1755 | -10/Exiles | Found Exiles lab destroyed 1782 | -10/Exiles | Discovered new exit (range 15) 2247 | -10/Exiles | Discovered new exit (range 14) 2254 | -10/Exiles | Entered Mines 2256 | -9/Mines | Core integrity fell below 50% 2259 | -9/Mines | Discovered new exit (range 8) 2288 | -9/Mines | Crushed by falling debris 2288 | -9/Mines | Smashed by cave-in Last Messages --------------- K-01 Serf destroyed. Acquired 6 matter. Acquired 17 matter. Acquired 46 matter. Acquired 20 matter. U-05 Engineer lays Concrete. The unstable cave ceiling collapses. Acquired Terrain Scanner. U-05 Engineer lays Concrete. The unstable cave ceiling collapses. U-05 Engineer lays Concrete. U-05 Engineer builds a Wall. Acquired Wheel. The unstable cave ceiling collapses. Crushed by falling debris. [Achievement: Unlikely Earthworm] Ion Engine destroyed. System corrupted by crushing effect (+2). Hover Unit destroyed. System corrupted by crushing effect (+3). Map ----- +----------------------------------------------------+ | ????????????????????????????????????????????? | | ????????????????????????????????????????????? | | ????????????????????????????????????????????? | | ????????????????????????????????????????????? | | ????????????????????????????????????????????? | | ????????????????????????????????????????????? | | ????????????????????????????????????????????? | | ????????????????????????????????????????????? | | ????????????????????????????????????????????? | | ????????????????????????????????????????????? | | ???????????????????????#????????????????????? | | ??????????????????????? ????????????????????? | | ??????????????????????? ????????????????????? | | ??????????????????????? ????????????????????? | | ??????????????????????# #???????????????????? | | ??????????????????????# #???????????????????? | | ??????????????????????# #???????????????????? | | ??????????????????????# #???????????????????? | | ??????????????????????# #???????????????????? | | ????????????????#?????# #???????????????????? | | ????????????????# ??### #???????????????????? | | ????????????????# ??? #???????????????????? | | ????????????????# ???## ###??###????????????? | | ??????????????### #### #?# ##???????????? | | ??????????????# ! *### #???????????? | | ??????????????# < @# = #????????????? | | ??????????????# ## ####????????????? | | ??????????????# u = ##???????????????? | | ??????????????# = ##???????????????? | | ??????????????# """ ##??????????????? | | ??????????????# """ ##?????????????? | | ??????????????# """ ## #?????????????? | | ??????????????# ### # #?????????????? | | ??????????????######??#### ##?????????????? | | ??????????????????????????####??????????????? | | ????????????????????????????????????????????? | | | | | | | | | | | | | | | | | | | | | | | | | | | | | +----------------------------------------------------+ Best States ------------- Heat Dissipation 35 Energy Generation 10 Energy Capacity 250 Matter Stores 300 Matter Capacity 300 Sight Range 16 Terrain Scan Density 10 Additional Mass Support 6 Resistance: KI 20 Resistance: TH 20 Resistance: EX 20 Resistance: EM 20 Resistance: I 20 Resistance: S 20 Resistance: P 20 Evasion (%) 61 Offensive Hacking 10 Item Schematics ----------------- None Robot Schematics ------------------ None Fabricated ------------ Nothing Alien Tech Used ----------------- None Achievements -------------- A New Friend Unlikely Earthworm Challenges ------------ None Game ------ Seed HoverMiniCloak Manual? 0 Play Time 00:53:57 Cumulative 5.6 hours Start 2022.11.07 @ 17:20:31 End 2022.11.07 @ 18:15:53 Sessions 1 Manual Loads 0 Difficulty Adventurer Special Mode None Game No. 7 Rogue 2 Adventurer 5 Explorer 0 Win Type - Total 0 Types 0/0/0/0/0/0/0/0/0 Lore% 5 Gallery% 6 Achievement% 6 Wizard Run 0 Options --------- ASCII 0 Keyboard 0 Movement Mouse Keybinds 0 Fullscreen 1 Font 18/SmallcapsGlow Map View 76x50 Tactical HUD 0 Map Filters NONE Filters NONE Steam 1 RUN: a927790a-bd61-4bb2-80ad-7ebd37e9fe10